Cogmind - Beta 13 @@@ ROGUE MODE // 2024.04.11 @ 19:47:22 Player: Vox Result: Destroyed by G-47 Trooper with Particle Gun Performance ------------- Evolutions (0) 0 Regions Visited (2) 400 Robots Destroyed (14) 70 Value Destroyed (264) 264 Prototype IDs (0) 0 Alien Tech Used (0) 0 Bonus (0) 0 TOTAL SCORE: 734 Bonus ------- None Cogmind --------- Core Integrity 0/250 Matter 269/300 Energy 125/125 System Corruption 0% Temperature Hot (243) Movement Treading (320) Ox2 Location -10/Mines Parts ------- > --- POWER (1) -------- Light Ion Engine > --- PROPULSION (2) --- Light Treads Light Treads > --- UTILITY (2) ------ Huge Storage Unit Signal Interpreter > --- WEAPON (2) ------- Beam Cannon Beam Cannon > --- INVENTORY (25) --- Ion Engine Ion Engine Ion Engine Light Ion Engine Light Treads Light Treads Improved Aluminum Leg Improved Aluminum Leg Improved Aluminum Leg Improved Aluminum Leg Wheel Small Storage Unit High-capacity Matter Pod (165) Terrain Scanner Terrain Scan Processor Seismic Detector Light Armor Plating Medium Laser Beam Cannon Beam Cannon Beam Cannon Beam Cannon Beam Cannon Beam Cannon Peak State ------------ > --- POWER ------------ Ion Engine > --- PROPULSION ------- Light Treads Light Treads > --- UTILITY ---------- Huge Storage Unit Terrain Scanner > --- WEAPON ----------- Medium Laser Light Assault Rifle > --- INVENTORY -------- Ion Engine Light Ion Engine Light Ion Engine Light Treads Light Treads Light Treads Light Treads Improved Aluminum Leg Improved Aluminum Leg Improved Aluminum Leg Improved Aluminum Leg Wheel Small Storage Unit High-capacity Matter Pod Terrain Scan Processor Seismic Detector Seismic Detector Medium Laser Medium Laser Beam Cannon Beam Cannon Beam Cannon Beam Cannon Beam Cannon Beam Cannon [Rating: 10] Favorites ----------- Power Ion Engine Engine Ion Engine Propulsion Light Treads Treads Light Treads Utility Huge Storage Unit Device Terrain Scanner Storage Huge Storage Unit Processor Signal Interpreter Weapon Medium Laser Energy Gun Medium Laser Energy Cannon Beam Cannon Ballistic Gun Light Assault Rifle Build | -11 -10 -10 ------- Run | Yrd Mat Min Slots Evolved . | . . . Power . | . . . Propulsion . | . . . Utility . | . . . Weapon . | . . . Parts Attached 15 | 6 9 . Power 2 | 1 1 . Engine 2 | 1 1 . Core . | . . . Reactor . | . . . Propulsion 4 | 2 2 . Treads 4 | 2 2 . Leg . | . . . Wheel . | . . . Hover . | . . . Flight . | . . . Utility 4 | 1 3 . Device 1 | . 1 . Storage 2 | 1 1 . Processor 1 | . 1 . Hackware . | . . . Protection . | . . . Artifact . | . . . Weapon 5 | 2 3 . Energy Gun 2 | 1 1 . Energy Cannon 2 | . 2 . Ballistic Gun 1 | 1 . . Ballistic Cannon . | . . . Launcher . | . . . Special Weapon . | . . . Impact Weapon . | . . . Slashing Weapon . | . . . Piercing Weapon . | . . . Special Melee Weapon . | . . . Unidentified Prototypes . | . . . Parts Lost 4 | . 4 . Power 1 | . 1 . Propulsion 2 | . 2 . Utility . | . . . Weapon 1 | . 1 . Highest Loss Streak 4 | . 4 . To Critical Strikes . | . . . Average Slot Usage (%) 98 | . 98 100 Engine 13 | . 13 14 Treads 27 | . 27 28 Device 5 | . 6 . Storage 14 | . 14 14 Processor 7 | . 6 14 Energy Gun 12 | . 13 . Energy Cannon 2 | . . 28 Ballistic Gun 12 | . 13 . Naked Turns . | . . . Heaviest Build 93 | 13 93 89 Greatest Support 40 | 40 40 40 Greatest Overweight (x) 2 | 2 2 2 Average Overweight (x) 1 | . 1 2 Largest Inventory Capacity 25 | 8 25 25 Average Capacity 23 | 7 24 25 Most Carried 25 | 6 25 24 Average Carried 19 | 4 20 24 Final Capacity 25 | 8 25 25 Final Carried 24 | 6 24 24 Class Distribution -------------------- 100% | Mutant Dominant Class ---------------- Mutant | -10/Materials Mutant | -10/Mines Resources | -11 -10 -10 ----------- Run | Yrd Mat Min Matter Collected 523 | 210 294 19 Remotely . | . . . Salvage Created 333 | . 333 . Parts 24 | . 24 . Haulers Intercepted 1 | . 1 . Recyclers Shooed . | . . . Parts Field Recycled . | . . . Retrieved Matter . | . . . Parts Self-Destructed . | . . . Prevented . | . . . Kills | -11 -10 -10 ------- Run | Yrd Mat Min Combat Hostiles Destroyed 10 | . 10 . Guns 9 | . 9 . AOE 1 | . 1 . Classes Destroyed 5 | . 5 . Worker 1 | . 1 . Hauler 1 | . 1 . Watcher 2 | . 2 . Swarmer 6 | . 6 . Grunt 4 | . 4 . Best Kill Streak 3 | . 3 . Combat Bots Only 3 | . 3 . Max Kills in Single Turn 2 | . 2 . Gunslinging . | . . . Exploded 1 | . 1 . Melee . | . . . Uniques/NPCs Destroyed . | . . . Combat | -11 -10 -10 -------- Run | Yrd Mat Min Hostile Shots Fired 106 | . 84 22 Missed 21 | . 18 3 Damage Taken 1097 | . 840 257 Core 265 | . 211 54 Absorbed by Shields . | . . . Core Remaining (%) 100 | 100 . . Volleys Fired 63 | . 59 4 Largest 2 | . 2 2 Hottest 120 | . 70 120 Shots Fired 113 | . 105 8 Gun 105 | . 105 . Cannon 8 | . . 8 Launcher . | . . . Special . | . . . Kinetic 59 | . 59 . Thermal 54 | . 46 8 Explosive . | . . . Electromagnetic . | . . . Robot Hit Streak 11 | . 11 4 Robot Miss Streak 5 | . 5 1 Penetration Max . | . . . Secondary Targets 1 | . 1 . Max Gunslinging Chain 1 | . 1 . Shots Hit Robots 69 | . 63 6 Core Hits 29 | . 28 1 Critical Kills . | . . . Critical Parts Destroyed . | . . . Critical Strikes 3 | . 3 . Burn 3 | . 3 . Melee Attacks . | . . . Impact . | . . . Slashing . | . . . Piercing . | . . . Sneak Attacks . | . . . Combat Hostiles . | . . . Follow-up Attacks . | . . . Damage Inflicted 939 | . 834 105 Guns 645 | . 645 . Cannons 105 | . . 105 Explosions 189 | . 189 . Melee . | . . . Ramming . | . . . Kinetic 308 | . 308 . Thermal 442 | . 337 105 Explosive 189 | . 189 . Electromagnetic . | . . . Impact . | . . . Slashing . | . . . Piercing . | . . . Highest Corruption . | . . . Average Corruption . | . . . Corruption Purged . | . . . Corruption Blocked . | . . . Overload Shots . | . . . Overflow Damage 137 | . 137 . Projectiles . | . . . Explosions 137 | . 137 . Melee . | . . . Knockbacks . | . . . Impact . | . . . Kinetic . | . . . Secondary . | . . . Self-Inflicted Damage 223 | . 223 . Shots 2 | . 2 . Rammed . | . . . Targets Rammed . | . . . Kicked . | . . . Crushed . | . . . Highest Temperature 315 | . 216 315 Average Temperature 76 | . 62 199 Received Heat Transfer 291 | . 147 144 Effects 1 | . . 1 Energy Bleed 1 | . . 1 Siege Activations . | . . . Robots Corrupted . | . . . Combat Hostiles . | . . . Parts Fried . | . . . Impact Corruptions . | . . . Robots Melted . | . . . Combat Hostiles . | . . . Parts Melted 2 | . 2 . Heat Transferred 1443 | . 1221 222 Parts Sabotaged . | . . . Parts Stolen . | . . . Parts Stripped . | . . . Power Chain Reactions . | . . . Alert | -11 -10 -10 ------- Run | Yrd Mat Min Peak Influence 168 | . 168 8 Initial 8 | . . 8 Average 33 | . 37 8 Maximum Alert Level . | . . . Low Security (%) 100 | 100 100 100 Level 1 . | . . . Level 2 . | . . . Level 3 . | . . . Level 4 . | . . . Level 5 . | . . . High Security . | . . . Max Security . | . . . Squads Dispatched 2 | . 2 . Investigation 1 | . 1 . Extermination . | . . . Reinforcement 1 | . 1 . Assault . | . . . Garrison . | . . . Intercept . | . . . Searches Triggered . | . . . Construction Impeded . | . . . Haulers Reinforced . | . . . Active Scanning Responses . | . . . Cargo Convoy Interrupts . | . . . Stealth | -11 -10 -10 --------- Run | Yrd Mat Min Distress Signals . | . . . Communications Jammed . | . . . Distress Signals . | . . . Times Spotted 23 | . 21 2 Peak Tracking Total 3 | . 3 2 Tactical Retreats 1 | . 1 . Traps | -11 -10 -10 ------- Run | Yrd Mat Min Traps Triggered 1 | . 1 . Indirectly . | . . . Trap Hack Attempts . | . . . Triggered . | . . . Disarmed . | . . . Reprogrammed . | . . . Reused . | . . . Traps Extracted . | . . . Installed . | . . . Triggered . | . . . Machines | -11 -10 -10 ---------- Run | Yrd Mat Min Machines Disabled 2 | . 2 . Max in Single Turn 2 | . 2 . Machines Repaired . | . . . Machines Dismantled . | . . . Machines Sabotaged . | . . . Overloaded Fab Kills . | . . . Hacking | -11 -10 -10 --------- Run | Yrd Mat Min Machines Accessed 4 | . 4 . Terminals 4 | . 4 . Fabricators . | . . . Repair Stations . | . . . Recycling Units . | . . . Scanalyzers . | . . . Garrison Access . | . . . Total Hacks 13 | . 13 . Successful 5 | . 5 . Failed 7 | . 7 . Catastrophic 1 | . 1 . Database Lockouts 1 | . 1 . Manual 13 | . 13 . Terminals 13 | . 13 . Fabricators . | . . . Repair Stations . | . . . Recycling Units . | . . . Scanalyzers . | . . . Garrison Access . | . . . Terminal Hacks 2 | . 2 . Robot Analysis 1 | . 1 . Recall Reinforcements 1 | . 1 . Fabricator Hacks . | . . . Repair Station Hacks . | . . . Recycling Unit Hacks . | . . . Scanalyzer . | . . . Garrison Access Hacks . | . . . Unauthorized Hacks 3 | . 3 . Terminals 3 | . 3 . Botnet 3 | . 3 . Fabricators . | . . . Repair Stations . | . . . Recycling Units . | . . . Scanalyzers . | . . . Garrison Access . | . . . Data Cores Recovered . | . . . Used . | . . . Hacking Detections 3 | . 3 . Full Trace Events . | . . . Feedback Events . | . . . Feedback Blocked . | . . . Robot Schematics Acquired . | . . . Robots Built . | . . . Authchips . | . . . Time . | . . . Total Robot Build Rating . | . . . Part Schematics Acquired . | . . . Parts Built . | . . . Authchips . | . . . Time . | . . . Total Part Build Rating . | . . . Parts Repaired . | . . . Time . | . . . Parts Recycled . | . . . Recycled Matter . | . . . Retrieved Matter . | . . . Retrieved Components . | . . . Parts Scanalyzed . | . . . Part Schematics Acquired . | . . . Parts Damaged . | . . . Bothacking | -11 -10 -10 ------------ Run | Yrd Mat Min Used RIF Installer . | . . . Robots Hacked . | . . . Non-combat . | . . . Combat . | . . . Robot Hacks Applied . | . . . Relay Couplers Released . | . . . Fabnet Peak Effective % . | . . . Robots Rewired . | . . . Allies Hacked . | . . . Hacks Repelled . | . . . Allies | -11 -10 -10 -------- Run | Yrd Mat Min Total Allies . | . . . Largest Group . | . . . Highest-Rated Group . | . . . Highest-Rated Ally . | . . . Total Orders . | . . . Ally Attacks . | . . . Total Damage . | . . . Kills . | . . . Allies Corrupted . | . . . Allies Melted . | . . . Intel | -11 -10 -10 ------- Run | Yrd Mat Min Robot Analysis Total 1 | . 1 . Derelict Logs Recovered . | . . . Drone Launches . | . . . Drone Recoveries . | . . . Exploration | -11 -10 -10 ------------- Run | Yrd Mat Min Turns Passed 2186 | 105 1929 152 Spaces Moved 631 | 61 529 41 Core 14 | 14 . . Treads 617 | 47 529 41 Legs . | . . . Wheels . | . . . Hover . | . . . Flight . | . . . Fastest Speed 50 | 50 160 320 Average Speed 297 | 139 313 320 Slowest Speed 320 | 160 320 320 Overloaded Moves . | . . . Propulsion Burnouts . | . . . Robots Hopped . | . . . Cave-ins Triggered . | . . . Exploration Rate (%) 26 | 5 60 15 Regions Visited 2 Branch Regions 1 Pre-discovered Areas . | . . . Known Exits Taken 1 | . 1 . Unknown Exits Taken 1 | 1 . . Scrap Searched 1 | . . 1 Spaces Dug . | . . . Terrain Destroyed 33 | . 33 . Melee . | . . . Projectile . | . . . AOE 33 | . 33 . Terrain Rammed . | . . . Walls Destroyed . | . . . Machines Disabled . | . . . Actions | -11 -10 -10 --------- Run | Yrd Mat Min Total 843 | 78 711 54 Wait 90 | 6 75 9 Move 629 | 60 528 41 Hop . | . . . Pick Up 35 | 6 29 . Fast Attach 10 | 6 4 . Attach 5 | . 5 . Detach 1 | . 1 . Swap . | . . . Drop 10 | . 10 . Fire 63 | . 59 4 Melee . | . . . Ram . | . . . Kick . | . . . Crush . | . . . Escape Stasis . | . . . Rewire . | . . . Trap . | . . . Miscellaneous . | . . . Route ------- -11/Scrapyard -10/Materials (discovered 3 exits: *Mat x2 / *Min) -10/Mines History --------- Turn | Location | Event 12 | -11/Scrapyard | Discovered new exit (range 15) 106 | -11/Scrapyard | Entered Materials 308 | -10/Materials | Build established: Mutant 1104 | -10/Materials | Discovered new exit (range 8) 1129 | -10/Materials | Identified exit to Materials 1262 | -10/Materials | Core integrity fell below 50% 1262 | -10/Materials | Core integrity fell below 20% 1288 | -10/Materials | Lost 4 parts (1p2n1w) 1409 | -10/Materials | Discovered exit to Materials (range 16) 1595 | -10/Materials | Central database locked down 1936 | -10/Materials | Discovered new exit (range 8) 2032 | -10/Materials | Identified exit to Mines 2035 | -10/Materials | Entered Mines 2039 | -10/Mines | Met a Derelict bent on vengeance 2187 | -10/Mines | Destroyed by G-47 Trooper with Particle Gun Last Messages --------------- 01991_ R-06 Scavenger collects Hover Unit. 01993_ K-01 Serf cleans the Terminal. 01996_ R-06 Scavenger collects Med. Laser. 01998_ K-01 Serf cleans the Terminal. 02032_ EXIT=IDENTIFIED: MINES LOCATION=MINES GOAL=ESCAPE 02036_ A derelict wanders into view. 02039_ XV-RGK(g): "UNAWARE KILLED MY BEST FRIEND! VENGEANCE!" 02077_ Searching scrap... 02077_ Found Hcp. Matter Pod. 02077_ Found EM Pulse Gun. 02077_ Found Huge Storage Unit. 02077_ Found 19 Matter. 02078_ Acquired 19 matter. 02087_ XV-RGK(g): "TASTE MY VENGEANCE!" 02144_ T-07 Excavator is excavating. 02147_ XV-RGK(g): "TASTE MY VENGEANCE!" 02178_ Overheating: Energy bleed (-25). Map ----- +----------------------------------------------------+ | ??????????????????????????????????????????????? | | ??????????????????????????????????????????????? | | ??????????????????????????????????????????????? | | ??????????????????????????????????????????????? | | ??????????????????????????????????????????????? | | ??????????????????????????????????????????????? | | ??????????????????????????????????????????????? | | ??????????????????????????????????????????????? | | ??????????????????????????????????????????????? | | ??????????????????????????? ??????????????????? | | ??????????????????????????? ????????????????? | | ??????????????????????????? ????????????????? | | ???????????????? ???????? #????????????????? | | ??????????????? ??????? ?????????????????? | | ???????????????# ?????? ?????????????????? | | ??????????????## ?????? ?????????????????? | | ??????????????# ???? #?????????????????? | | ????????????### #???#u #?????????????????? | | ???????????? #??# #?????????????????? | | ?????????????? ### #?????????????????? | | ??????????????## #?????????????????? | | ??????????????# #?????????????????? | | ????????????????""" #?????????????????? | | ??????????????? """ g ##????????????????? | | ??????????????? """ g #????????????????? | | ??????????? $ ####@ #????????????????? | | ????????????????????????# #????????????????? | | ???????????????????????## #????????????????? | | ???????????????????????# ##???????????????? | | ???????????????????????# #????###????????? | | ???????????????????????# ###### #????????? | | ????????????# ## ##### #????????? | | ???????????? #????????? | | ????????????? ###### #????????? | | ??????????????? ######## #???????????????? | | ???????????????????????##!! ##???######??????? | | ????????????????????????#[ ###????# ###????? | | ????????????????????????# ######## ##???? | | ????????????????????????# #???? | | ????????????????????????# #???? | | ????????????????????????############### ##???? | | ??????????????????????????????????????####????? | | ??????????????????????????????????????????????? | | ??????????????????????????????????????????????? | | | | | | | | | | | | | +----------------------------------------------------+ Best States ------------- Heat Dissipation 25 Energy Generation 10 Energy Capacity 250 Matter Stores 300 Matter Capacity 300 Sight Range 16 Terrain Scan Range 14 Terrain Scan Density 10 Evasion (%) 50 Recoil Reduction 2 Item Schematics ----------------- None Robot Schematics ------------------ None Fabricated ------------ Nothing Alien Tech Used ----------------- None Achievements -------------- None Challenges ------------ None Game ------ Seed BombSurveybotKit Manual? 0 Play Time 00:10:31 Cumulative 25.2 hours Start 2024.04.11 @ 19:31:44 End 2024.04.11 @ 19:47:22 Sessions 1 Manual Loads 0 Difficulty Rogue Special Mode None Game No. 24 Rogue 20 Adventurer 0 Explorer 4 Win Type - Total 0 Types 0/0/0/0/0/0/0/0/0 Lore% 24 Gallery% 28 Achievement% 27 Wizard Run 0 Options --------- Layout 1 ASCII 0 Keyboard 0 Movement Mouse Keybinds 0 Fullscreen 2 Font 32/SmallcapsGlow Map View 50x35 Zoom Use 0% Tactical HUD 1 Map Filters NONE Filters NONE Steam 1 RUN: 0f7c7e5f-9532-4840-be18-6f1cc19b57ae